{"text_format":"1","workbook":"xlsx","n_sheets":3,"sheets":["Info","Indicative term","Lenders submitted to"],"not_rendered":{"charts":0,"images":2,"macros":1,"external_links":0,"defined_names":2,"comments":0,"pivot_tables":0},"unopened":[],"bounds":{"document_bytes":16777216,"sheet_cells":100000,"rows_first":2000,"rows_last":500,"rows_between":2000,"halvings":0,"cell_chars":16384,"cell_head_chars":4096},"cells_cut":0,"cells_raw":0,"read":"whole","date_system":"1900"}

{"sheet":"Info","index":0,"n_rows":74,"n_cols":5,"rows_kept":74,"cut":false,"hidden":false,"merged":[[0,1,0,2]]}
[null,"1 Elmfield Park, Bromley, United Kingdom, BR1 1LU\nW- www.businessxbridge.co.uk E-contact@businessxbridge.co.uk\nHot Line- 0800 368 7619 Tel: 0208 6919 139 Fax- 0203 890 4465"]
["Info","Response","Comments"]
["Entity?"]
["Incorporated on"]
["Trading start date (If Ltd)"]
["Business name "]
["Company number (If Ltd)"]
["Trading name (If Ltd)"]
["Business Address"]
["Business Description(NEW)"]
[]
["Director/owner 1"]
["Client phone number"]
["Client email address"]
["Client name"]
["Client D.O.B"]
["Client address"]
["How long they lived there"]
["Previous address if less than three years in the current address "]
[]
[]
["Director/owner 2"]
["Client phone number"]
["Client email address"]
["Client name"]
["Client D.O.B"]
["Client address"]
["How long they lived there"]
["Previous address if less than three years in the current address "]
[]
["Home owner"]
["If they are homeowner:"]
["Purchase date"]
["Purcahse value"]
["Mortgage outstanding"]
["Mortgage lender"]
["Property type"]
["Current value"]
["Any other properties owned? "]
[]
["Business bank name "]
["Any overdrafts",null,"Limit - "]
["Second business bank name (if applicable)"]
["Any overdrafts",null,"Limit - "]
["How many card machine in the business?"]
["Card machine provider "]
["Monthly card sales"]
["Monthly cash sales"]
["Accounts available?"]
["Annual Turnover*(NEW)"]
[]
["Any personal or business CCJ on Current/previously owned business ",null,"2400£- "]
["Any credit default"]
["Missed payments in 6 months"]
["Applied with any other broker in the last 6 months"]
["Any business loans"]
["If so:"]
["Lender"]
["Amount borrowed"]
["Date borrowed"]
["Amount outstanding"]
["Any other loans?"]
[]
["Lender"]
["Amount borrowed"]
["Date borrowed"]
["Amount outstanding"]
["Any other loans?"]
[]
["Minimum amount needed to borrow"]
["Maximum amount"]
["Purpose"]
["Broker/referral"]
["Type of Loan Payment(NEW)","         Daily","      Weekly","Monthly","    Card Mach Loan"]

{"sheet":"Indicative term","index":1,"n_rows":74,"n_cols":5,"rows_kept":74,"cut":false,"hidden":false,"merged":[[3,1,3,3],[4,1,4,3],[5,1,5,3],[24,1,24,3],[7,0,7,3],[9,1,9,3],[10,1,10,3],[11,1,11,3],[12,1,12,3],[14,1,14,3],[17,1,17,3],[18,1,18,3],[19,1,19,3],[20,1,20,3],[22,1,22,3],[48,1,48,3],[25,1,25,3],[26,1,26,3],[27,1,27,3],[29,1,29,3],[31,1,31,3],[32,1,32,3],[33,1,33,3],[34,1,34,3],[36,1,36,3],[37,0,42,3],[46,0,46,3],[62,1,62,3],[49,1,49,3],[50,1,50,3],[51,1,51,3],[52,1,52,3],[54,1,54,3],[55,1,55,3],[56,1,56,3],[57,1,57,3],[58,1,58,3],[60,1,60,3],[61,1,61,3],[70,1,70,3],[72,1,72,3],[73,0,76,3],[63,1,63,3],[64,1,64,3],[66,1,66,3],[67,1,67,3],[68,1,68,3],[69,1,69,3]]}
[]
[]
[]
["Business Name ",{"$f":"Info!B6","v":0}]
["Applicant Name ",{"$f":"Info!B15","v":0}]
["Business Address ",{"$f":"Info!B9","v":0}]
[]
["Indicative Terms Subject to full underwriting "]
["Offer 1"]
[null,"Merchant Cash Advance"]
["Loan Amount ",29500]
["Repayment Amount (£)  ",{"$f":"B11*1.21","v":35695}]
["Term","6-9 Months "]
["Factor Rate ",null,{"$f":"B12/B11","v":1.21}]
["Percentage of Card Sales (%)  ",0.2]
[]
["Offer 2"]
[null,"Daily DD Cash Advance"]
["Loan Amount ",{"$f":"B11","v":29500}]
["Repayment Amount (£)  ",{"$f":"B19*1.5","v":44250}]
["Term",120]
["Factor Rate ",null,{"$f":"B20/B19","v":1.5}]
["Percentage of Card Sales (%)  ",{"$f":"B20/B21","v":368.75}]
["Offer 3"]
[null,"Daily DD Cash Advance"]
["Loan Amount ",{"$f":"B11","v":29500}]
["Repayment Amount (£)  ",{"$f":"B26*1.41","v":41595}]
["Term",120]
["Factor Rate ",null,{"$f":"B27/B26","v":1.41}]
["Percentage of Card Sales (%)  ",{"$f":"B27/B28","v":346.625}]
["Offer 4",null,"MAX"]
[null,"Weekly Loan "]
["Loan Amount ",{"$f":"B11","v":29500}]
["Repayment Amount (£)  ",{"$f":"B33*1.5","v":44250}]
["Term in weeks",52]
["Interst Per Annum",null,{"$f":"B34/B35*4.32/10000","v":0.36761538461538462}]
["Monthly ",{"$f":"B34/B35","v":850.96153846153845}]
["Business X Bridge LTD, Devonshire House Business Centre, 29-31 Elmfield Road, Bromley, Kent, BR1 1LT \nW- www.businessxbridge.co.uk E- contact@businessxbridge.co.uk Hot Line- 0800 368 7619 Tel: 0208 6919 139 Fax- 0203 890 4465 \nBusinessxBrisge Limited is authorised and regulated by the Financial Conduct Authority (FCA) BusinessxBrisge is a Limited Company (9700905), we have a Data Protection Authorisation from the Information Commissioner’s Office (ZA141753).\n"]
[]
[]
[]
[]
[]
[]
[]
[]
["Conditionally Approved"]
[]
["Offer 5","Adelpha Capital"]
[null,null,null,null,"Total Repayment"]
["Loan Amount ",100000,null,null,228000]
["Early Repayment Amount (£)  ",0]
["Term in Month",60]
["Interst Per Annum",null,{"$f":"E51/B53/10000","v":0.38}]
["Monthly ",{"$f":"E51/B53","v":3800}]
["Offer 6","Adelpha Capital secured "]
["Loan Amount ",60000,null,null,"Total Repayment"]
["Early Repayment Amount (£)  ",0,null,null,138000]
["Term",60]
["Interst Per Annum",null,{"$f":"E58/B59/10000","v":0.23}]
["Monthly ",{"$f":"E58/B59","v":2300}]
["Offer 7","Funding Circle Good Credit "]
["Loan Amount ",17426,null,null,"Total Repayment"]
["Repayment Amount (£)  ",0,null,null,21103]
["Term",12]
["Interst Per Annum",null,{"$f":"E64/B65/10000","v":0.17585833333333334}]
["Monthly ",{"$f":"E64/B65","v":1758.5833333333333}]
["Offer 8","Funding Circle High Risk Credit "]
["Loan Amount ",55000,null,null,"Total Repayment"]
["Early Repayment Amount (£)  ",0,null,null,99000]
["Term",52]
["Interst Per Annum",null,{"$f":"E70/B71/10000","v":0.19038461538461537}]
["Monthly ",{"$f":"E70/B71","v":1903.8461538461538}]
["Business X Bridge LTD, Devonshire House Business Centre, 29-31 Elmfield Road, Bromley, Kent, BR1 1LT \nW- www.businessxbridge.co.uk E- contact@businessxbridge.co.uk Hot Line- 0800 368 7619 Tel: 0208 6919 139 Fax- 0203 890 4465 \nBusinessxBrisge Limited is authorised and regulated by the Financial Conduct Authority (FCA) BusinessxBrisge is a Limited Company (9700905), we have a Data Protection Authorisation from the Information Commissioner’s Office (ZA141753).\n"]

{"sheet":"Lenders submitted to","index":2,"n_rows":31,"n_cols":13,"rows_kept":31,"cut":false,"hidden":false,"merged":[[29,0,29,3]]}
["Code","Lender","Applied","Date","Outcome","Comments"]
["YLDT","YouLend",null,null,null,null,null,null,null,null,null,null,""]
["Purple Box","Liberis",null,null,null,null,null,null,null,null,null,null,"Accepted"]
["CaP","Capify",null,null,null,null,null,null,null,null,null,null,"Rejected"]
["24/7",365]
["March","Merchant money"]
["P2PL","Lending crowd"]
["P2PF","Funding circle"]
["Max007","Maxcap"]
["GPNHS","Got capital"]
["SF","Swiftfund"]
["Alpha","Adelpha"]
["Alpha","Adelpha (secured)"]
["IWG","Iwoca"]
["SW","Swishfund"]
["MCL","My cash line"]
["LB","Little Business Loan"]
["CF/S","Cubefunder"]
["RP","Reparo Finance "]
["NW","Natwest "]
["C4","Credit 4"]
["KF","Kingsway finance"]
["SFBBB","Swig Finance"]
["BEFBBB","BEF"]
["FEBBB","First Enterprise"]
["RS","Rivers"]
["FC","Federal Capital (Halo)"]
[]
[]
["ZOHO PURPOSE "]
["Case Manager","Amount  requested","Amount funded","Date funded"]